bitfinex-derivatives/quotes_BNBF0:USTF0_20250904
["timestamp","ask_amount","ask_price","bid_price","bid_amount"]
[1756950992386,0.20349033,855.49,855.17,0.7172627]
[1756950992591,0.20349033,855.49,855.13,1.757]
[1756950992890,0.20349033,855.49,855.14,0.71726939]
[1756950993085,0.20349033,855.49,855.15,0.71726939]
[1756950993287,0.20349033,855.49,855.16,0.71726939]
[1756950993491,0.20349033,855.49,855.13,1.757]
[1756950993787,0.20349033,855.49,855.14,0.71727626]
[1756950994090,0.20349033,855.49,855.15,0.71727626]
[1756950994288,0.20349033,855.49,855.16,0.71727626]
[1756950994492,0.20349033,855.49,855.13,1.757]
[1756950994791,0.20349033,855.49,855.14,0.71728318]
[1756950994990,0.20349033,855.49,855.15,0.71728318]
[1756950995188,0.20349033,855.49,855.16,0.71728318]
[1756950995391,0.20349033,855.49,855.13,1.757]
[1756950995686,0.20349033,855.49,855.14,0.71729021]
[1756950995890,0.20349033,855.49,855.15,0.71729021]
[1756950996090,0.20349033,855.49,855.16,0.71729021]
[1756950996287,0.20349033,855.49,855.13,1.757]
[1756950996486,0.20349033,855.49,855.14,0.71729101]
[1756950996691,0.20349033,855.49,855.15,0.71729101]
[1756950996888,0.20349033,855.49,855.16,0.71729101]
[1756950997191,0.20349033,855.49,855.13,1.757]
[1756950997391,0.20349033,855.49,855.14,0.71728089]
[1756950997591,0.20349033,855.49,855.15,0.71728089]
[1756950997793,0.20349033,855.49,855.16,0.71728089]
[1756950997992,0.20349033,855.49,855.13,1.757]
[1756950998291,0.20349033,855.49,855.14,0.71572814]
[1756950998491,0.20349033,855.49,855.15,0.71572814]
[1756950998691,0.20349033,855.49,855.16,0.71572814]
[1756950998893,0.20349033,855.49,855.17,0.71572814]
[1756950999096,0.20349033,855.49,855.13,1.757]
[1756950999398,0.20349033,855.49,855.14,0.71572533]
[1756950999692,0.20349033,855.49,855.15,0.71572533]
[1756950999902,0.20349033,855.49,855.16,0.71572533]
[1756951000096,0.20349033,855.49,855.13,1.757]
[1756951005602,2.6205666,856.55,855.13,1.757]
[1756951006903,2.6205666,856.55,854.68,0.78890754]
[1756951007104,2.6205666,856.55,854.69,0.71547873]
[1756951007303,2.6205666,856.55,854.7,0.71547873]
[1756951007505,2.6205666,856.55,854.71,0.71547873]
[1756951007804,2.6205666,856.55,854.72,0.71547873]
[1756951008003,2.6205666,856.55,854.73,0.71547873]
[1756951008203,2.6205666,856.55,854.74,0.71547873]
[1756951008405,2.6205666,856.39,854.75,0.71547873]
[1756951008602,2.6205666,856.39,854.76,0.71547873]
[1756951008802,2.6205666,856.39,854.77,0.71547873]
[1756951009003,2.6205666,856.39,854.78,0.71547873]
[1756951009208,2.6205666,856.39,854.79,0.71547873]
[1756951009405,2.6205666,856.32,854.8,0.71547873]
[1756951009605,2.6205666,856.32,854.81,0.71547873]
[1756951009806,2.6205666,856.32,854.82,0.71547873]
[1756951010006,2.6205666,856.32,854.83,0.71547873]
[1756951010303,2.6205666,856.32,854.84,0.71547873]
[1756951010502,2.6205666,856.24,854.85,0.71547873]
[1756951010700,2.6205666,856.24,854.86,0.71547873]
[1756951010901,2.6205666,856.15,854.87,0.71547873]
[1756951011102,2.6205666,856.15,854.88,0.71547873]
[1756951011302,2.6205666,856.15,854.89,0.71547873]
[1756951011607,2.6205666,856.15,854.9,0.71547873]
[1756951011804,2.6205666,856.15,854.91,0.71547873]
[1756951012105,2.6205666,856.14,854.92,0.71547873]
[1756951012305,2.6205666,856.14,854.93,0.71547873]
[1756951012505,2.6205666,856.26,854.94,0.71547873]
[1756951012707,2.6205666,856.26,854.86,1.822]
[1756951013007,2.6205666,856.26,854.87,0.715278]
[1756951013206,2.6205666,856.26,854.88,0.715278]
[1756951013405,2.6205666,856.26,854.89,0.715278]
[1756951013605,2.6205666,856.21,854.9,0.715278]
[1756951013905,2.6205666,856.21,854.91,0.715278]
[1756951014104,2.6205666,856.21,854.92,0.715278]
[1756951014304,2.6205666,856.21,854.93,0.715278]
[1756951014504,2.6205666,856.21,854.86,1.822]
[1756951014704,2.6205666,856.21,854.87,0.71522426]
[1756951015008,2.6205666,856.21,854.88,0.71522426]
[1756951015208,2.6205666,856.48,854.89,0.71522426]
[1756951015403,2.6205666,856.48,854.9,0.71522426]
[1756951015703,2.6205666,856.48,854.91,0.71522426]
[1756951015905,2.6205666,856.48,854.92,0.71522426]
[1756951016209,0.20340112,856.1,854.93,0.71522426]
[1756951016408,0.20340112,856.1,854.94,0.71522426]
[1756951016703,0.20340112,856.1,854.95,0.71522426]
[1756951016904,0.20340112,856.1,854.86,1.822]
[1756951017104,0.20340112,856.1,854.87,0.71517583]
[1756951017305,0.20340112,856.1,854.88,0.71517583]
[1756951017509,0.20340112,856.1,854.89,0.71517583]
[1756951017708,0.20340112,856.1,854.9,0.71517583]
[1756951018008,0.20340112,856.1,854.91,0.71517583]
[1756951018208,0.20340112,856.1,854.92,0.71517583]
[1756951018407,0.20340112,856.1,854.93,0.71517583]
[1756951018604,0.20340112,856.1,854.94,0.71517583]
[1756951018809,0.20340112,856.1,854.95,0.71517583]
[1756951019105,0.20340112,856.1,854.86,1.822]
[1756951024911,2.6205666,856.06,854.86,1.822]
[1756951026016,2.6205666,856.01,854.86,1.822]
[1756951026917,0.20340112,856.1,854.86,1.822]
[1756951028520,2.82396772,856.1,854.86,1.822]
[1756951029117,0.20340112,856.1,854.86,1.822]
[1756951029318,0.20340112,856.1,854.87,2.70998699]
[1756951029517,0.20340112,856.1,854.88,0.71398699]
[1756951029820,0.20340112,856.1,854.89,0.71398699]
[1756951030117,0.20340112,856.1,854.87,1.996]
[1756951030321,0.20340112,856.1,854.88,0.71397305]
[1756951030616,0.20340112,856.1,854.89,0.71397305]
[1756951030821,0.20340112,856.1,854.87,1.996]
[1756951031015,0.20340112,856.1,854.88,0.71396315]
[1756951031219,0.20340112,856.1,854.89,0.71396315]
[1756951031419,0.20340112,856.1,854.9,0.71395095]
[1756951031620,0.20340112,856.1,854.87,1.996]
[1756951031817,0.20340112,856.1,854.88,0.71395095]
[1756951032022,0.20340112,856.1,854.89,0.71395095]
[1756951032322,0.20340112,856.1,854.9,0.71395095]
[1756951032519,0.20340112,856.1,854.87,1.996]
[1756951032720,0.20340112,856.1,854.88,0.71393976]
[1756951032917,0.20340112,856.1,854.89,0.71393976]
[1756951033120,0.20340112,856.1,854.87,1.996]
[1756951033121,0.20340112,856.1,854.9,0.71393976]
[1756951033318,0.20340112,856.1,854.87,1.996]
[1756951033518,0.20340112,856.1,854.88,0.71392957]
[1756951033719,0.20340112,856.1,854.89,0.71392957]
[1756951033919,0.20340112,856.1,854.9,0.71392957]
[1756951034119,0.20340112,856.1,854.87,1.996]
[1756951034324,0.20340112,856.1,854.88,0.71392961]
[1756951034523,0.20340112,856.1,854.89,0.71392961]
[1756951034823,0.20340112,856.1,854.9,0.71392961]
[1756951035019,0.20340112,856.1,854.87,1.996]
[1756951035225,0.20340112,856.1,854.88,0.71392113]
[1756951035420,0.20340112,856.1,854.89,0.71392113]
[1756951035621,0.20340112,856.1,854.9,0.71392113]
[1756951035825,0.20340112,856.1,854.87,1.996]
[1756951036122,0.20340112,856.1,854.88,0.71391208]
[1756951036321,0.20340112,856.1,854.89,0.71391208]
[1756951036522,0.20340112,856.1,854.87,1.996]
[1756951036725,0.20340112,856.1,854.88,0.71390476]
[1756951036925,0.20340112,856.1,854.89,0.71390476]
[1756951037225,0.20340112,856.1,854.87,1.996]
[1756951037422,0.20340112,856.1,854.9,1.717]
[1756951040929,0.20340112,856.1,854.91,0.71354977]
[1756951041130,0.20340112,856.1,854.92,0.71354977]
[1756951041334,0.20340112,856.1,854.9,1.717]
[1756951041335,0.20340112,856.1,854.93,0.71354977]
[1756951041634,0.20340112,856.1,854.94,0.71354977]
[1756951041831,0.20340112,856.1,854.95,0.71354977]
[1756951042035,0.20340112,856.1,854.96,0.71354977]
[1756951042230,0.20340112,856.1,854.9,1.717]
[1756951042529,0.20340112,856.1,854.91,0.71341861]
[1756951042735,0.20340112,856.1,854.92,0.71341861]
[1756951042931,0.20340112,856.1,854.93,0.71341861]
[1756951043131,0.20340112,856.1,854.94,0.71341861]
[1756951043335,0.20340112,856.1,854.95,0.71341861]
[1756951043532,0.20340112,856.1,854.96,0.71341861]
[1756951043731,0.20340112,856.1,854.97,0.71341861]
[1756951044032,0.20340112,856.1,854.98,0.71341861]
[1756951044335,0.20340112,856.1,854.99,0.71341861]
[1756951044533,0.20340112,856.1,854.9,1.717]
[1756951044736,0.20340112,856.1,854.91,0.71337864]
[1756951044936,0.20340112,856.1,854.92,0.71337864]
[1756951045137,0.20340112,856.1,854.93,0.71337864]
[1756951045437,0.20340112,856.1,854.94,0.71337864]
[1756951045636,0.20340112,856.1,854.95,0.71337864]
[1756951045932,0.20340112,856.1,854.96,0.71337864]
[1756951046235,0.20340112,856.1,854.9,1.717]
[1756951046236,0.20340112,856.1,854.97,0.71337864]
[1756951046436,0.20340112,856.1,854.9,1.717]
[1756951046632,0.20340112,856.1,854.91,0.71341411]
[1756951046830,0.20340112,856.1,854.92,0.71341411]
[1756951047031,0.20340112,856.1,854.93,0.71341411]
[1756951047236,0.20340112,856.1,854.9,1.717]
[1756951047437,0.20340112,856.1,854.91,0.71377889]
[1756951047639,0.20340112,856.1,854.92,0.71377889]
[1756951047937,0.20340112,856.1,854.9,1.717]
[1756951048238,0.20340112,856.1,854.91,0.71378927]
[1756951048438,0.20340112,856.1,854.9,1.717]
[1756951062649,0.20340112,856.1,854.91,1.5]
[1756951071151,0.20340112,856.1,854.92,1.284]
[1756951076756,0.20340112,856.1,854.93,1.481]
[1756951100585,2.6205666,856.08,854.93,1.481]
[1756951101584,0.20340112,856.1,854.93,1.481]
[1756951102988,0.20340112,856.1,854.94,1.741]
[1756951109293,2.6205666,856.05,854.94,1.741]
[1756951111602,2.6205666,855.91,854.94,1.741]
[1756951112496,2.6205666,856.07,854.94,1.741]
[1756951113501,2.6205666,856.06,854.94,1.741]
[1756951114000,2.6205666,856.03,854.94,1.741]
[1756951115103,2.6205666,856.04,854.94,1.741]
[1756951117097,2.6205666,856.03,854.94,1.741]
[1756951117704,2.6205666,856.01,854.94,1.741]
[1756951119599,0.20340112,856.1,854.94,1.741]
[1756951119802,0.20340112,856.1,854.95,0.71453761]
[1756951120005,0.20340112,856.1,854.96,0.71453761]
[1756951120305,0.20340112,856.1,854.94,1.741]
[1756951120601,0.20340112,856.1,854.95,0.71453567]
[1756951120806,0.20340112,856.1,854.96,0.71453567]
[1756951121106,0.20340112,856.1,854.94,1.741]
[1756951121301,0.20340112,856.1,854.95,0.71453361]
[1756951121505,0.20340112,856.1,854.96,0.71453361]
[1756951121705,0.20340112,856.1,854.94,1.741]
[1756951121902,0.20340112,856.1,854.95,0.71453284]
[1756951122103,0.20340112,856.1,854.96,0.71453284]
[1756951122406,0.20340112,856.1,854.94,1.741]
[1756951122604,0.20340112,856.1,854.95,0.71451364]
[1756951122805,0.20340112,856.1,854.96,0.71451364]
[1756951123001,0.20340112,856.1,854.94,1.741]
[1756951123206,0.20340112,856.1,854.95,0.71449472]
[1756951123406,0.20340112,856.1,854.96,0.71449472]
[1756951123605,0.20340112,856.1,854.97,0.71449472]
[1756951123806,0.20340112,856.1,854.98,0.71449472]
[1756951124005,0.20340112,856.1,854.94,1.741]
[1756951124006,0.20340112,856.1,854.99,0.71449472]
[1756951124207,0.20340112,856.1,855.0,0.71449472]
[1756951124405,0.20340112,856.1,854.94,1.741]
[1756951124606,0.20340112,856.1,854.95,0.71435632]
[1756951124807,0.20340112,856.1,854.96,0.71435632]
[1756951125007,0.20340112,856.1,854.97,0.71435632]
[1756951125204,0.20340112,856.1,854.98,0.71435632]
[1756951125504,0.20340112,856.1,854.99,0.71435632]
[1756951125703,0.20340112,856.1,855.0,0.71435632]
[1756951125908,0.20340112,856.1,854.93,1.481]
[1756951126106,0.20340112,856.1,854.94,0.71431542]
[1756951126304,0.20340112,856.1,854.95,0.71431542]
[1756951126503,0.20340112,856.1,854.96,0.71431542]
[1756951126703,0.20340112,856.1,854.97,0.71431542]
[1756951126908,0.20340112,856.1,854.98,0.71431542]
[1756951127210,0.20340112,856.1,854.99,0.71431542]
[1756951127404,0.20340112,856.1,855.0,0.71431542]
[1756951127605,0.20340112,856.1,855.01,0.71431542]
[1756951127803,0.20340112,856.1,854.6,0.78890754]
[1756951128005,0.20340112,856.1,854.61,0.71424793]
[1756951128209,0.20340112,856.1,854.62,0.71424793]
[1756951128409,0.20340112,856.1,854.63,0.71424793]
[1756951128610,0.20340112,856.1,854.64,0.71424793]
[1756951128810,0.20340112,856.1,854.65,0.71424793]
[1756951129008,0.20340112,856.1,854.66,0.71424793]
[1756951129211,0.20340112,856.1,854.67,0.71424793]
[1756951129409,0.20340112,856.1,854.68,0.71424793]
[1756951129607,0.20340112,856.1,854.69,0.71424793]
[1756951129812,0.20340112,856.1,854.7,0.71424793]
[1756951130012,0.20340112,856.1,854.71,0.71424793]
[1756951130210,0.20340112,856.1,854.72,0.71424793]
[1756951130506,0.20340112,856.1,854.73,0.71424793]
[1756951130706,0.20340112,856.1,854.74,0.71417583]
[1756951130910,0.20340112,856.1,854.75,0.71417583]
[1756951131110,0.20340112,856.1,854.76,0.71417583]
[1756951131311,0.20340112,856.1,854.77,0.71417583]
[1756951131508,0.20340112,856.1,854.78,0.71417583]
[1756951131710,0.20340112,856.1,854.79,0.71417583]
[1756951132012,0.20340112,856.1,854.8,0.71417583]
[1756951132209,0.20340112,856.1,854.81,0.71417583]
[1756951132413,0.20340112,856.1,854.82,0.71417583]
[1756951132610,0.20340112,856.1,854.83,0.71417583]
[1756951132809,0.20340112,856.1,854.84,0.71417583]
[1756951133010,0.20340112,856.1,854.85,0.71417583]
[1756951133313,0.20340112,856.1,854.86,0.71417583]
[1756951133512,0.20340112,856.1,854.87,0.71417583]
[1756951133813,0.20340112,856.1,854.88,0.71417583]
[1756951134011,0.20340112,856.1,854.89,0.71417583]
[1756951134313,0.20340112,856.1,854.9,0.71417583]
[1756951134514,0.20340112,856.1,854.91,0.71417583]
[1756951134715,0.20340112,856.1,854.92,0.71417583]
[1756951135017,0.20340112,856.1,854.93,0.71417583]
[1756951135315,0.20340112,856.1,854.94,0.71417583]
[1756951135610,0.20340112,856.1,854.95,0.71417583]
[1756951135814,0.20340112,856.1,854.96,0.71417583]
[1756951136014,0.20340112,856.1,854.67,1.629]
[1756951136214,0.20340112,856.1,854.68,0.71399301]
[1756951136410,0.20340112,856.1,854.69,0.71399301]
[1756951136614,0.20340112,856.1,854.7,0.71399301]
[1756951136812,0.20340112,856.1,854.71,0.71399301]
[1756951137011,0.20340112,856.1,854.72,0.71399301]
[1756951137215,0.20340112,856.1,854.73,0.71399301]
[1756951137416,0.20340112,856.1,854.74,0.71399301]
[1756951137615,0.20340112,856.1,854.75,0.71399301]
[1756951137815,0.20340112,856.1,854.76,0.71399301]
[1756951138012,0.20340112,856.1,854.77,0.71399301]
[1756951138214,0.20340112,856.1,854.78,0.71399301]
[1756951138417,0.20340112,856.1,854.79,0.71399301]
[1756951138617,0.20340112,856.1,854.8,0.71399301]
[1756951138818,0.20340112,856.1,854.81,0.71399301]
[1756951139018,0.20340112,856.1,854.82,0.71399301]
[1756951139216,0.20340112,856.1,854.83,0.71399301]
[1756951139415,0.20340112,856.1,854.84,0.71399301]
[1756951139620,0.20340112,856.1,854.85,0.71399301]
[1756951139818,0.20340112,856.1,854.86,0.71399301]
[1756951140018,0.20340112,856.1,854.87,0.71399301]
[1756951140218,0.20340112,856.1,854.88,0.71399301]
[1756951140417,0.20340112,856.1,854.89,0.71399301]
[1756951140622,0.20340112,856.1,854.9,0.71399301]
[1756951140919,0.20340112,856.1,854.91,0.71399301]
[1756951141117,0.20340112,856.1,854.92,0.71399301]
[1756951141318,0.20340112,856.1,854.93,0.71399301]
[1756951141522,0.20340112,856.1,854.94,0.71399301]
[1756951141719,0.20340112,856.1,854.95,0.71399301]
[1756951141923,0.20340112,856.1,854.96,0.71399301]
[1756951142125,0.20340112,856.1,854.97,0.71399301]
[1756951142325,0.20340112,856.1,854.98,0.71399301]
[1756951142625,0.20340112,856.1,854.99,0.71399301]
[1756951142823,0.20340112,856.1,855.0,0.71399301]
[1756951143020,0.20340112,856.1,855.01,0.71399301]
[1756951143224,0.20340112,856.1,855.02,0.71399301]
[1756951143425,0.20340112,856.1,854.71,0.78866598]
[1756951143620,0.20340112,856.1,854.72,0.71365871]
[1756951143826,0.20340112,856.1,854.73,0.71365871]
[1756951144126,0.20340112,856.1,854.74,0.71365871]
[1756951144426,0.20340112,856.1,854.75,0.71365871]
[1756951144623,0.20340112,856.1,854.76,0.71365871]
[1756951144823,0.20340112,856.1,854.77,0.71365871]
[1756951145032,0.20340112,856.1,854.78,0.71365871]
[1756951145235,0.20340112,856.1,854.79,0.71365871]
[1756951145433,0.20340112,856.1,854.8,0.71365871]
[1756951145630,0.20340112,856.1,854.81,0.71365871]
[1756951145932,0.20340112,856.1,854.82,0.71365871]
[1756951146135,0.20340112,856.1,854.83,0.71365871]
[1756951146330,0.20340112,856.1,854.84,0.71365871]
[1756951146535,0.20340112,856.1,854.85,0.71365871]
[1756951146730,0.20340112,856.1,854.86,0.71365871]
[1756951146931,0.20340112,856.1,854.87,0.71365871]
[1756951147135,0.20340112,856.1,854.88,0.71365871]
[1756951147338,0.20340112,856.1,854.89,0.71365871]
[1756951147636,0.20340112,856.1,854.9,0.71365871]
[1756951147836,0.20340112,856.1,854.91,0.71365871]
[1756951148132,0.20340112,856.1,854.92,0.71365871]
[1756951148336,0.20340112,856.1,854.93,0.71365871]
[1756951148536,0.20340112,856.1,854.94,0.71365871]
[1756951148735,0.20340112,856.1,854.95,0.71365871]
[1756951148932,0.20340112,856.1,854.96,0.71365871]
[1756951149135,0.20340112,856.1,854.97,0.71365871]
[1756951149334,0.20340112,856.1,854.67,1.629]
[1756951149534,0.20340112,856.1,854.68,0.71394967]
[1756951149738,0.20340112,856.1,854.69,0.71394967]
[1756951149933,0.20340112,856.1,854.7,0.71394967]
[1756951150135,0.20340112,856.1,854.71,0.71394967]
[1756951150335,0.20340112,856.1,854.72,0.71394967]
[1756951150542,0.20340112,856.1,854.73,0.71394967]
[1756951150838,0.20340112,856.1,854.74,0.71394967]
[1756951151038,0.20340112,856.1,854.75,0.71394967]
[1756951151238,0.20340112,856.1,854.76,0.71394967]
[1756951151439,0.20340112,856.1,854.77,0.71394967]
[1756951151637,0.20340112,856.1,854.78,0.71394967]
[1756951151841,0.20340112,856.1,854.79,0.71394967]
[1756951152142,2.6205666,856.05,854.8,0.71394967]
[1756951152339,2.6205666,856.05,854.81,0.71394967]
[1756951152544,2.6205666,856.05,854.82,0.71394967]
[1756951152839,2.6205666,856.05,854.83,0.71394967]
[1756951153043,2.6205666,856.05,854.84,0.71394967]
[1756951153344,2.6205666,856.05,854.85,0.71394967]
[1756951153546,2.6205666,856.05,854.86,0.71394967]
[1756951153739,2.6205666,856.05,854.87,0.71394967]
[1756951153941,2.6205666,856.05,854.88,0.71394967]
[1756951154141,2.6205666,856.05,854.89,0.71394967]
[1756951154340,2.6205666,856.05,854.9,0.71394967]
[1756951154541,2.6205666,856.05,854.67,1.629]
[1756951154746,2.6205666,856.05,854.68,0.71380486]
[1756951155046,2.6205666,856.05,854.69,0.71380486]
[1756951155342,2.6205666,856.05,854.7,0.71380486]
[1756951155545,0.20340112,856.1,854.71,0.71380486]
[1756951155840,0.20340112,856.1,854.72,0.71380486]
[1756951156040,0.20340112,856.1,854.73,0.71380486]
[1756951156240,0.20340112,856.1,854.74,0.71380486]
[1756951156440,0.20340112,856.1,854.68,1.448]
[1756951156441,0.20340112,856.1,854.75,0.71380486]
[1756951156745,0.20340112,856.1,854.76,0.71380486]
[1756951156946,0.20340112,856.1,854.77,0.71380486]
[1756951157243,0.20340112,856.1,854.78,0.71380486]
[1756951157441,0.20340112,856.1,854.79,0.71380486]
[1756951157742,0.20340112,856.1,854.8,0.71380486]
[1756951157942,0.20340112,856.1,854.81,0.71380486]
[1756951158145,0.20340112,856.1,854.82,0.71380486]
[1756951158349,0.20340112,856.1,854.83,0.71380486]
[1756951158548,0.20340112,856.1,854.84,0.71380486]
[1756951158842,0.20340112,856.1,854.85,0.71380486]
[1756951159142,0.20340112,856.1,854.86,0.71380486]
[1756951159342,0.20340112,856.1,854.87,0.71380486]
[1756951159645,0.20340112,856.1,854.88,0.71380486]
[1756951159942,0.20340112,856.1,854.89,0.71380486]
[1756951160144,0.20340112,856.1,854.9,0.71380486]
[1756951160342,0.20340112,856.1,854.91,0.71380486]
[1756951160542,0.20340112,856.1,854.92,0.71380486]
[1756951160742,0.20340112,856.1,854.93,0.71380486]
[1756951160943,0.20340112,856.1,854.94,0.71380486]
[1756951161141,0.20340112,856.1,854.95,0.71380486]
[1756951161443,0.20340112,856.1,854.96,0.71380486]
[1756951161647,0.20340112,856.1,854.97,0.71380486]
[1756951161845,0.20340112,856.1,854.98,0.71380486]
[1756951162146,0.20340112,856.1,854.99,0.71380486]
[1756951162345,0.20340112,856.1,855.0,0.71380486]
[1756951162542,0.20340112,856.1,855.01,0.71380486]
[1756951162741,0.20340112,856.1,855.02,0.71380486]
[1756951162946,0.20340112,856.1,855.03,0.71380486]
[1756951163146,0.20340112,856.1,854.73,0.78866598]
[1756951163343,0.20340112,856.1,854.74,0.71361857]
[1756951163546,0.20340112,856.1,854.75,0.71361857]
[1756951163849,0.20340112,856.1,854.76,0.71361857]
[1756951164143,0.20340112,856.1,854.77,0.71361857]
[1756951164346,0.20340112,856.1,854.78,0.71361857]
[1756951164546,0.20340112,856.1,854.79,0.71361857]
[1756951164745,0.20340112,856.1,854.8,0.71361857]
[1756951164944,0.20340112,856.1,854.81,0.71361857]
[1756951165150,0.20340112,856.1,854.82,0.71361857]
[1756951165343,0.20340112,856.1,854.83,0.71361857]
[1756951165544,0.20340112,856.1,854.84,0.71361857]
[1756951165845,0.20340112,856.1,854.85,0.71361857]
[1756951166042,0.20340112,856.1,854.86,0.71361857]
[1756951166242,0.20340112,856.1,854.87,0.71361857]
[1756951166447,0.20340112,856.1,854.88,0.71361857]
[1756951166644,0.20340112,856.1,854.89,0.71361857]
[1756951166947,0.20340112,856.1,854.9,0.71361857]
[1756951167147,0.20340112,856.1,854.91,0.71361857]
[1756951167348,0.20340112,856.1,854.92,0.71361857]
[1756951167549,0.20340112,856.1,854.93,0.71361857]
[1756951167744,0.20340112,856.1,854.94,0.71361857]
[1756951167943,0.20340112,856.1,854.95,0.71361857]
[1756951168145,0.20340112,856.1,854.96,0.71361857]
[1756951168344,0.20340112,856.1,854.97,0.71361857]
[1756951168549,0.20340112,856.1,854.98,0.71361857]
[1756951168844,0.20340112,856.1,854.99,0.71361857]
[1756951169049,0.20340112,856.1,855.0,0.71361857]
[1756951169250,0.20340112,856.1,855.01,0.71361857]
[1756951169451,0.20340112,856.1,855.02,0.71361857]
[1756951169644,0.20340112,856.1,855.03,0.71361857]
[1756951169946,0.20340112,856.1,855.04,0.71361857]
[1756951170146,0.20340112,856.1,854.72,0.78866598]
[1756951170350,0.20340112,856.1,854.73,1.50236841]
[1756951170647,0.20340112,856.1,854.74,0.71370243]
[1756951170945,0.20340112,856.1,854.75,0.71370243]
[1756951171149,0.20340112,856.1,854.76,0.71370243]
[1756951171350,0.20340112,856.1,854.77,0.71370243]
[1756951171550,0.20340112,856.1,854.78,0.71370243]
[1756951171846,0.20340112,856.1,854.79,0.71370243]
[1756951172047,0.20340112,856.1,854.8,0.71370243]
[1756951172248,0.20340112,856.1,854.81,0.71370243]
[1756951172545,0.20340112,856.1,854.82,0.71370243]
[1756951172750,0.20340112,856.1,854.83,0.71370243]
[1756951172950,0.20340112,856.1,854.84,0.71370243]
[1756951173150,0.20340112,856.1,854.85,0.71370243]
[1756951173351,0.20340112,856.1,854.86,0.71370243]
[1756951173549,0.20340112,856.1,854.87,0.71370243]
[1756951173753,0.20340112,856.1,854.88,0.71370243]
[1756951173953,0.20340112,856.1,854.89,0.71370243]
[1756951174155,0.20340112,856.1,854.9,0.71370243]
[1756951174349,0.20340112,856.1,854.91,0.71370243]
[1756951174553,0.20340112,856.1,854.92,0.71370243]
[1756951174749,0.20340112,856.1,854.93,0.71370243]
[1756951175048,0.20340112,856.1,854.94,0.71370243]
[1756951175253,0.20340112,856.1,854.95,0.71370243]
[1756951175549,0.20340112,856.1,854.96,0.71370243]
[1756951175750,0.20340112,856.1,854.97,0.71370243]
[1756951176053,0.20340112,856.1,854.98,0.71370243]
[1756951176254,0.20340112,856.1,854.99,0.71370243]
[1756951176451,0.20340112,856.1,855.0,0.71370243]
[1756951176652,0.20340112,856.1,855.01,0.71370243]
[1756951176855,0.20340112,856.1,855.02,0.71370243]
[1756951177051,0.20340112,856.1,855.03,0.71370243]
[1756951177254,0.20340112,856.1,855.04,0.71370243]
[1756951177550,0.20340112,856.1,855.05,0.71370243]
[1756951177754,0.20340112,856.1,855.06,0.71370243]
[1756951178054,0.20340112,856.1,855.07,0.71370243]
[1756951178255,0.20340112,856.1,855.08,0.71370243]
[1756951178451,0.20340112,856.1,855.09,0.71370243]
[1756951178653,0.20340112,856.1,855.1,0.71370243]
[1756951178851,0.20340112,856.1,855.11,0.71370243]
[1756951179051,0.20340112,856.1,855.12,0.71370243]
[1756951179357,0.20340112,856.1,855.13,0.71370243]
[1756951179655,0.20340112,856.1,855.14,0.71370243]
[1756951179855,0.20340112,856.1,855.15,0.71370243]
[1756951180155,0.20340112,856.1,855.16,0.71370243]
[1756951180454,0.20340112,856.1,855.17,0.71370243]
[1756951180654,0.20340112,856.1,855.17,1.91]
[1756951186760,0.20340112,856.1,855.18,1.544]
[1756951192465,0.20340112,856.1,855.19,0.7137001]
[1756951192765,0.20340112,856.1,855.2,0.7137001]
[1756951192965,0.20340112,856.1,855.21,0.7137001]
[1756951193164,0.20340112,856.1,855.22,0.7137001]
[1756951193363,0.20340112,856.1,855.23,0.7137001]
[1756951193666,0.20340112,856.1,855.24,0.7137001]
[1756951193866,0.20340112,856.1,855.25,0.7137001]
[1756951194063,0.20340112,856.1,855.26,0.7137001]
[1756951194263,0.20340112,856.1,855.27,0.7137001]
[1756951194567,0.20340112,856.1,855.28,0.7137001]
[1756951194768,0.20340112,856.1,855.18,1.544]
[1756951194965,0.20340112,856.1,855.19,0.71335418]
[1756951195164,0.20340112,856.1,855.2,0.71335418]
[1756951195367,0.20340112,856.1,855.21,0.71335418]
[1756951195567,0.20340112,856.1,855.22,0.71335418]
[1756951195765,0.20340112,856.1,855.23,0.71335418]
[1756951195968,0.20340112,856.1,855.24,0.71335418]
[1756951196166,0.20340112,856.1,855.25,0.71335418]
[1756951196366,0.20340112,856.1,855.26,0.71335418]
[1756951196566,0.20340112,856.1,855.18,1.544]
[1756951196866,0.20340112,856.1,855.19,0.71317719]
[1756951197068,0.20340112,856.1,855.2,0.71317719]
[1756951197365,0.20340112,856.1,855.21,0.71317719]
[1756951197566,0.20340112,856.1,855.22,0.71317719]
[1756951197867,0.20340112,856.1,855.23,0.71317719]
[1756951198069,0.20340112,856.1,855.24,0.71317719]
[1756951198267,0.20340112,856.1,855.25,0.71317719]
[1756951198573,0.20340112,856.1,855.18,1.544]
[1756951198870,0.20340112,856.1,855.19,0.71310511]
[1756951199068,0.20340112,856.1,855.2,0.71310511]
[1756951199269,0.20340112,856.1,855.18,1.544]
[1756951199476,0.20340112,856.1,855.19,0.71302987]
[1756951199775,0.20340112,856.1,855.18,1.544]